[Event "POL-chT 1st League 2020"]
[Site "Ustron"]
[Date "2020.09.08"]
[Round "4.2"]
[White "Paszewski, Mateusz"]
[Black "Wiewiora, Eneasz"]
[Result "0-1"]
[ECO "E81"]
[WhiteElo "2275"]
[BlackElo "2346"]
[Annotator "ChessBase"]
[PlyCount "212"]
[EventDate "2020.09.05"]
[EventType "team-tourn"]
[EventCountry "POL"]
[SourceTitle "playchess.com"]
[Source "ChessBase"]
[SourceQuality "1"]
[TimeControl "40/5400+30:1800+30"]

1. c4 {[%emt 0:00:00]} Nf6 {[%emt 0:02:16]} 2. d4 {[%emt 0:00:00]} g6 {[%emt 0:05:10]} 3. f3 {[%emt 0:00:00]} Bg7 {[%emt 0:04:17]} 4. e4 {[%emt 0:00:11]} O-O {[%emt 0:00:06]} 5. Nc3 {[%emt 0:00:04]} d6 {[%emt 0:01:37]} 6. Nge2 {[%emt 0:00:10]} c5 {[%emt 0:05:11]} 7. d5 {[%emt 0:00:22]} e6 {[%emt 0:00:19]} 8. Ng3 {[%emt 0:00:06]} exd5 {[%emt 0:00:53]} 9. cxd5 {[%emt 0:00:02]} a6 {[%emt 0:02:06]} 10. a4 {[%emt 0:00:12]} Nbd7 {[%emt 0:00:21]} 11. Be2 {[%emt 0:02:23]} Rb8 {[%emt 0:06:07]} 12. O-O {[%emt 0:04:01]} Re8 {[%emt 0:04:06]} 13. Be3 {[%emt 0:12:02]} h5 {[%emt 0:09:07]} 14. Bg5 {[%emt 0:08:30]} Qc7 {[%emt 0:19:34]} 15. Qd2 {[%emt 0:03:59]} c4 {[%emt 0:01:53]} 16. a5 {[%emt 0:13:55]} b5 {[%emt 0:13:05]} 17. axb6 {[%emt 0:06:49]} Qxb6+ {[%emt 0:00:13]} 18. Be3 {[%emt 0:03:51]} Qc7 {[%emt 0:07:16]} 19. Na4 {[%emt 0:07:06]} Ne5 {[%emt 0:00:59]} 20. Rfc1 {[%emt 0:10:09]} h4 {[%emt 0:02:12]} 21. Nh1 {[%emt 0:00:35]} Bd7 {[%emt 0:01:07]} 22. Nf2 {[%emt 0:03:26]} Bb5 {[%emt 0:02:03]} 23. h3 {[%emt 0:11:26]} Nh7 {[%emt 0:06:17]} 24. Bd4 {[%emt 0:02:52]} f5 {[%emt 0:01:39]} 25. Nc3 Qf7 {[%emt 0:03:13]} 26. Nxb5 {[%emt 0:07:00]} axb5 {[%emt 0:00:01]} 27. Ra7 {[%emt 0:00:32]} Re7 {[%emt 0:00:37]} 28. Rxe7 {[%emt 0:00:56]} Qxe7 {[%emt 0:00:01]} 29. Ra1 {[%emt 0:00:12]} f4 {[%emt 0:00:56]} 30. Ra7 {[%emt 0:01:15]} Rb7 {[%emt 0:00:22]} 31. Ra8+ {[%emt 0:00:32]} Nf8 {[%emt 0:00:01]} 32. Qxf4 {[%emt 0:02:32]} Nxf3+ {[%emt 0:00:07]} 33. Bxf3 {[%emt 0:00:05]} Bxd4 {[%emt 0:00:05]} 34. Bg4 {[%emt 0:00:03]} Qf6 {[%emt 0:02:32]} 35. Qxf6 {[%emt 0:00:51]} Bxf6 {[%emt 0:00:01]} 36. Nd1 {[%emt 0:00:05]} Kg7 {[%emt 0:00:36]} 37. Kf2 {[%emt 0:00:38]} Bd4+ {[%emt 0:00:25]} 38. Ke2 {[%emt 0:00:07]} Nh7 {[%emt 0:00:41]} 39. Rd8 {[%emt 0:01:11]} Ng5 {[%emt 0:00:59]} 40. Rd7+ {[%emt 0:00:00]} Rxd7 {[%emt 0:00:00]} 41. Bxd7 {[%emt 0:01:09]} b4 {[%emt 0:04:51]} 42. Bb5 {[%emt 0:00:56]} Nxe4 {[%emt 0:04:13]} 43. Bxc4 {[%emt 0:00:10]} Kf6 {[%emt 0:01:38]} 44. Ne3 {[%emt 0:14:06]} Bxb2 {[%emt 0:02:18]} 45. Ng4+ {[%emt 0:00:11]} Kg5 {[%emt 0:00:33]} 46. Nf2 {[%emt 0:01:08]} Ng3+ {[%emt 0:13:23]} 47. Kf3 {[%emt 0:01:34]} Nf5 {[%emt 0:00:06]} 48. Ne4+ {[%emt 0:02:38]} Kh6 {[%emt 0:00:02]} 49. Ke2 {[%emt 0:01:42]} Be5 {[%emt 0:00:50]} 50. Kd3 {[%emt 0:01:48]} Ng7 {[%emt 0:01:26]} 51. Nd2 {[%emt 0:02:36]} Nh5 {[%emt 0:00:25]} 52. Ke4 {[%emt 0:00:23]} Ng3+ {[%emt 0:03:22]} 53. Kd3 {[%emt 0:00:48]} Bf4 {[%emt 0:01:32]} 54. Nf3 {[%emt 0:04:46]} g5 {[%emt 0:00:03]} 55. Nd4 {[%emt 0:00:24]} Be5 {[%emt 0:00:39]} 56. Nc2 {[%emt 0:00:59]} Bc3 {[%emt 0:00:27]} 57. Ne3 {[%emt 0:00:05]} Kg6 {[%emt 0:00:23]} 58. Bb3 {[%emt 0:01:33]} Kf6 {[%emt 0:02:06]} 59. Bd1 {[%emt 0:00:37]} Ke5 {[%emt 0:01:29]} 60. Bf3 {[%emt 0:00:07]} Kf4 {[%emt 0:00:39]} 61. Bd1 {[%emt 0:01:43]} Ne4 {[%emt 0:00:45]} 62. Ng4 {[%emt 0:01:34]} Nc5+ {[%emt 0:00:34]} 63. Kc4 {[%emt 0:00:11]} Be1 {[%emt 0:00:34]} 64. Nh6 {[%emt 0:01:02]} Ne4 {[%emt 0:00:24]} 65. Nf7 {[%emt 0:00:22]} Kg3 {[%emt 0:00:43]} 66. Bc2 {[%emt 0:00:45]} Nf6 {[%emt 0:00:09]} 67. Nxd6 {[%emt 0:00:52]} Kxg2 {[%emt 0:00:07]} 68. Nf7 {[%emt 0:00:32]} Kxh3 {[%emt 0:01:04]} 69. Nxg5+ {[%emt 0:00:10]} Kg4 {[%emt 0:00:22]} 70. Ne4 {[%emt 0:00:21]} Nd7 {[%emt 0:00:33]} 71. Nc5 {[%emt 0:01:04]} Nb6+ {[%emt 0:00:09]} 72. Kb5 {[%emt 0:00:56]} Nxd5 {[%emt 0:00:05]} 73. Nd3 {[%emt 0:00:07]} Bc3 {[%emt 0:00:21]} 74. Nf2+ {[%emt 0:00:30]} Kf3 {[%emt 0:00:12]} 75. Nh3 {[%emt 0:00:20]} Ne3 {[%emt 0:00:21]} 76. Bb3 {[%emt 0:00:18]} Kg3 {[%emt 0:00:21]} 77. Ng5 {[%emt 0:00:05]} h3 {[%emt 0:00:20]} 78. Nxh3 {[%emt 0:00:19]} Kxh3 {[%emt 0:00:06]} 79. Ka4 {[%emt 0:00:05]} Kg3 {[%emt 0:00:08]} 80. Bg8 {[%emt 0:00:05]} Kf4 {[%emt 0:00:03]} 81. Kb3 {[%emt 0:00:05]} Ke5 {[%emt 0:00:04]} 82. Bf7 {[%emt 0:00:09]} Kd4 {[%emt 0:00:05]} 83. Bg8 {[%emt 0:00:08]} Nf5 {[%emt 0:00:09]} 84. Kc2 {[%emt 0:00:31]} Kc5 {[%emt 0:00:13]} 85. Kb3 {[%emt 0:00:29]} Nd4+ {[%emt 0:00:04]} 86. Ka2 {[%emt 0:00:04]} Kb5 {[%emt 0:00:43]} 87. Bf7 {[%emt 0:00:05]} Ka5 {[%emt 0:00:15]} 88. Be8 {[%emt 0:01:51]} b3+ {[%emt 0:00:42]} 89. Ka3 {[%emt 0:00:03]} Bd2 {[%emt 0:00:05]} 90. Kb2 {[%emt 0:00:13]} Kb4 {[%emt 0:00:04]} 91. Bf7 {[%emt 0:00:11]} Bc3+ {[%emt 0:00:05]} 92. Kb1 {[%emt 0:00:03]} Ka3 {[%emt 0:00:07]} 93. Bg8 {[%emt 0:00:30]} Nf3 {[%emt 0:00:11]} 94. Bxb3 {[%emt 0:00:42]} Kxb3 {[%emt 0:00:18]} 95. Kc1 {[%emt 0:00:02]} Nd4 {[%emt 0:00:48]} 96. Kd1 {[%emt 0:00:02]} Kc4 {[%emt 0:00:06]} 97. Kc1 {[%emt 0:00:03]} Kd3 {[%emt 0:00:05]} 98. Kb1 {[%emt 0:00:06]} Bb4 {[%emt 0:00:50]} 99. Kb2 {[%emt 0:00:05]} Kd2 {[%emt 0:00:03]} 100. Kb1 {[%emt 0:00:02]} Ba3 {[%emt 0:00:04]} 101. Ka2 {[%emt 0:00:03]} Bc1 {[%emt 0:00:03]} 102. Kb1 {[%emt 0:00:03]} Kd1 {[%emt 0:00:03]} 103. Ka2 {[%emt 0:00:11]} Kc2 {[%emt 0:00:03]} 104. Ka1 {[%emt 0:00:01]} Nc6 {[%emt 0:00:07]} 105. Ka2 {[%emt 0:00:04]} Nb4+ {[%emt 0:00:02]} 106. Ka1 {[%emt 0:00:02]} Bb2# {[%emt 0:00:02]} 0-1

[Event "POL-chT 1st League 2020"]
[Site "Ustron"]
[Date "2020.09.08"]
[Round "4.3"]
[White "Rawicz, Karol"]
[Black "Ciesla, Adam"]
[Result "0-1"]
[ECO "C70"]
[WhiteElo "2225"]
[BlackElo "2294"]
[Annotator "ChessBase"]
[PlyCount "46"]
[EventDate "2020.09.05"]
[EventType "team-tourn"]
[EventCountry "POL"]
[SourceTitle "playchess.com"]
[Source "ChessBase"]
[SourceQuality "1"]
[TimeControl "40/5400+30:1800+30"]

1. e4 {[%emt 0:00:00]} e5 {[%emt 0:00:00]} 2. Nf3 {[%emt 0:00:37]} Nc6 {[%emt 0:00:00]} 3. Bb5 {[%emt 0:01:04]} a6 {[%emt 0:00:00]} 4. Ba4 {[%emt 0:00:36]} b5 {[%emt 0:00:14]} 5. Bb3 {[%emt 0:00:22]} Na5 {[%emt 0:00:10]} 6. O-O {[%emt 0:05:35]} d6 {[%emt 0:02:06]} 7. d4 {[%emt 0:01:31]} exd4 {[%emt 0:00:32]} 8. Nxd4 {[%emt 0:00:23]} Bb7 {[%emt 0:01:52]} 9. Nf5 {[%emt 0:21:18]} g6 {[%emt 0:05:17]} 10. Ne3 {[%emt 0:10:47]} Bg7 {[%emt 0:02:58]} 11. Nc3 {[%emt 0:01:41]} Nf6 {[%emt 0:14:56]} 12. Ned5 {[%emt 0:02:39]} Nxd5 {[%emt 0:02:40]} 13. exd5 {[%emt 0:02:10]} O-O {[%emt 0:01:24]} 14. Be3 {[%emt 0:00:54]} b4 {[%emt 0:06:07]} 15. Na4 {[%emt 0:00:52]} Qh4 {[%emt 0:01:21]} 16. Qd3 {[%emt 0:34:24]} Rae8 {[%emt 0:04:07]} 17. c4 {[%emt 0:04:14]} Bc8 {[%emt 0:04:45]} 18. Rac1 {[%emt 0:02:17]} Nxb3 {[%emt 0:06:38]} 19. Qxb3 {[%emt 0:01:05]} Bd7 {[%emt 0:05:54]} 20. Qxb4 {[%emt 0:01:52]} Re5 {[%emt 0:01:20]} 21. g3 {[%emt 0:01:59]} Qh3 {[%emt 0:00:41]} 22. Rc2 {[%emt 0:00:07]} Rfe8 {[%emt 0:01:02]} 23. Qb3 {[%emt 0:02:58]} Rh5 {[%emt 0:03:26]} 0-1

[Event "POL-chT 1st League 2020"]
[Site "Ustron"]
[Date "2020.09.08"]
[Round "4.4"]
[White "Tomaszewski, Roman"]
[Black "Klepek, Witold"]
[Result "1/2-1/2"]
[ECO "C00"]
[WhiteElo "2206"]
[BlackElo "2159"]
[Annotator "ChessBase"]
[PlyCount "105"]
[EventDate "2020.09.05"]
[EventType "team-tourn"]
[EventCountry "POL"]
[SourceTitle "playchess.com"]
[Source "ChessBase"]
[SourceQuality "1"]
[TimeControl "40/5400+30:1800+30"]

1. e4 {[%emt 0:00:00]} e6 {[%emt 0:00:00]} 2. d3 {[%emt 0:00:00]} d5 {[%emt 0:00:00]} 3. Nd2 {[%emt 0:00:03]} c5 {[%emt 0:00:44]} 4. Ngf3 {[%emt 0:00:13]} Nf6 {[%emt 0:00:11]} 5. g3 {[%emt 0:00:48]} Nc6 {[%emt 0:00:06]} 6. Bg2 {[%emt 0:00:07]} Be7 {[%emt 0:03:46]} 7. O-O {[%emt 0:00:23]} Qc7 {[%emt 0:01:33]} 8. Re1 {[%emt 0:00:14]} b5 {[%emt 0:01:53]} 9. exd5 {[%emt 0:46:41]} exd5 {[%emt 0:01:03]} 10. c4 {[%emt 0:15:27]} bxc4 {[%emt 0:04:19]} 11. dxc4 {[%emt 0:00:03]} O-O {[%emt 0:01:21]} 12. Nf1 {[%emt 0:14:34]} Rd8 {[%emt 0:22:41]} 13. Bf4 {[%emt 0:00:09]} Qb6 {[%emt 0:04:43]} 14. Ne5 {[%emt 0:00:19]} Nxe5 {[%emt 0:02:23]} 15. Bxe5 {[%emt 0:00:08]} Be6 {[%emt 0:13:18]} 16. Qe2 {[%emt 0:09:09]} Qa6 {[%emt 0:09:05]} 17. cxd5 {[%emt 0:05:52]} Qxe2 {[%emt 0:00:14]} 18. Rxe2 {[%emt 0:00:05]} Bxd5 {[%emt 0:02:11]} 19. Ne3 {[%emt 0:02:06]} Bxg2 {[%emt 0:00:07]} 20. Kxg2 {[%emt 0:00:06]} g6 {[%emt 0:03:20]} 21. Rc1 {[%emt 0:01:20]} Nd5 {[%emt 0:01:00]} 22. Nxd5 {[%emt 0:00:35]} Rxd5 {[%emt 0:00:05]} 23. b3 {[%emt 0:00:18]} Rad8 {[%emt 0:02:12]} 24. Bc3 {[%emt 0:00:20]} Bf8 {[%emt 0:01:04]} 25. Re4 {[%emt 0:02:23]} f5 {[%emt 0:09:43]} 26. Ra4 {[%emt 0:00:20]} R8d7 {[%emt 0:00:49]} 27. Ra6 {[%emt 0:00:42]} R5d6 {[%emt 0:01:16]} 28. Ra5 {[%emt 0:00:33]} Re6 {[%emt 0:00:21]} 29. Rc2 {[%emt 0:00:11]} g5 {[%emt 0:07:27]} 30. Ra4 {[%emt 0:00:11]} Kf7 {[%emt 0:00:51]} 31. Rd2 {[%emt 0:00:07]} Red6 {[%emt 0:01:19]} 32. Rxd6 {[%emt 0:00:52]} Bxd6 {[%emt 0:00:06]} 33. Bd2 {[%emt 0:00:37]} g4 {[%emt 0:00:48]} 34. Be3 {[%emt 0:00:50]} Ke6 {[%emt 0:00:50]} 35. h3 {[%emt 0:00:42]} h5 {[%emt 0:00:15]} 36. h4 {[%emt 0:00:01]} Kd5 {[%emt 0:00:54]} 37. Ra6 {[%emt 0:00:18]} Rb7 {[%emt 0:02:30]} 38. Kf1 {[%emt 0:00:45]} Re7 {[%emt 0:00:22]} 39. Bg5 {[%emt 0:00:35]} Rd7 {[%emt 0:00:46]} 40. Ra4 {[%emt 0:00:00]} Rb7 {[%emt 0:00:00]} 41. Be3 {[%emt 0:03:41]} Bc7 {[%emt 0:04:38]} 42. Rc4 {[%emt 0:01:09]} Bd6 {[%emt 0:01:43]} 43. Ra4 {[%emt 0:01:18]} Bc7 {[%emt 0:00:54]} 44. Ke2 {[%emt 0:10:00]} Bb6 {[%emt 0:02:48]} 45. Rf4 {[%emt 0:01:58]} Ke6 {[%emt 0:00:27]} 46. Kd3 {[%emt 0:01:39]} Rd7+ {[%emt 0:00:29]} 47. Kc2 {[%emt 0:00:43]} Rd5 {[%emt 0:00:27]} 48. Rc4 {[%emt 0:07:32]} Re5 {[%emt 0:04:24]} 49. Kd3 {[%emt 0:04:05]} Rd5+ {[%emt 0:00:47]} 50. Ke2 {[%emt 0:00:12]} Re5 {[%emt 0:00:47]} 51. Kd3 {[%emt 0:03:20]} Rd5+ {[%emt 0:00:04]} 52. Kc2 {[%emt 0:00:56]} Re5 {[%emt 0:00:06]} 53. Kd3 {[%emt 0:00:33]} 1/2-1/2

[Event "POL-chT 1st League 2020"]
[Site "Ustron"]
[Date "2020.09.08"]
[Round "4.5"]
[White "Milanowski, Jan"]
[Black "Flis, Jacek"]
[Result "0-1"]
[ECO "A48"]
[WhiteElo "1751"]
[BlackElo "2214"]
[Annotator "ChessBase"]
[PlyCount "104"]
[EventDate "2020.09.05"]
[EventType "team-tourn"]
[EventCountry "POL"]
[SourceTitle "playchess.com"]
[Source "ChessBase"]
[SourceQuality "1"]
[TimeControl "40/5400+30:1800+30"]

1. d4 {[%emt 0:00:00]} Nf6 {[%emt 0:00:00]} 2. Nf3 {[%emt 0:00:11]} g6 {[%emt 0:00:11]} 3. Bf4 {[%emt 0:00:26]} Bg7 {[%emt 0:00:56]} 4. h3 {[%emt 0:01:12]} c5 {[%emt 0:05:16]} 5. c3 {[%emt 0:09:39]} Qb6 {[%emt 0:04:51]} 6. Qb3 {[%emt 0:02:47]} Nc6 {[%emt 0:06:11]} 7. e3 {[%emt 0:04:12]} Na5 {[%emt 0:09:23]} 8. Qxb6 {[%emt 0:01:18]} axb6 {[%emt 0:00:07]} 9. Nbd2 {[%emt 0:00:10]} O-O {[%emt 0:07:01]} 10. Be2 {[%emt 0:04:16]} d6 {[%emt 0:09:27]} 11. O-O {[%emt 0:00:47]} Bf5 {[%emt 0:05:35]} 12. g4 {[%emt 0:04:41]} Bd7 {[%emt 0:07:58]} 13. Kh2 {[%emt 0:01:54]} cxd4 {[%emt 0:04:54]} 14. exd4 {[%emt 0:02:15]} Nd5 {[%emt 0:01:25]} 15. Bg3 {[%emt 0:04:34]} b5 {[%emt 0:02:18]} 16. a3 {[%emt 0:01:40]} Nb6 {[%emt 0:03:37]} 17. Ne1 {[%emt 0:15:10]} Nac4 {[%emt 0:02:20]} 18. Nxc4 {[%emt 0:00:29]} bxc4 {[%emt 0:01:46]} 19. Nc2 {[%emt 0:03:55]} Rfc8 {[%emt 0:02:26]} 20. Ne3 {[%emt 0:02:35]} Ra5 {[%emt 0:03:52]} 21. Rad1 {[%emt 0:14:00]} Ba4 {[%emt 0:01:36]} 22. Rd2 {[%emt 0:00:07]} Bb3 {[%emt 0:00:21]} 23. Bf3 {[%emt 0:02:18]} Rc7 {[%emt 0:03:13]} 24. Be4 {[%emt 0:00:47]} Rd7 {[%emt 0:01:30]} 25. f4 {[%emt 0:01:54]} e6 {[%emt 0:00:28]} 26. f5 {[%emt 0:06:05]} exf5 {[%emt 0:00:59]} 27. gxf5 {[%emt 0:00:06]} Re7 {[%emt 0:02:05]} 28. fxg6 {[%emt 0:01:19]} hxg6 {[%emt 0:00:57]} 29. Bxb7 {[%emt 0:01:27]} Rxe3 {[%emt 0:00:37]} 30. Bxd6 {[%emt 0:00:09]} Rh5 {[%emt 0:00:32]} 31. Bg2 {[%emt 0:00:24]} Ba4 {[%emt 0:01:41]} 32. Bf4 {[%emt 0:00:59]} Re7 {[%emt 0:00:44]} 33. Bf3 {[%emt 0:01:05]} Rb5 {[%emt 0:00:23]} 34. Bg2 {[%emt 0:02:25]} Rf5 {[%emt 0:00:23]} 35. Bd6 {[%emt 0:02:10]} Rxf1 {[%emt 0:00:49]} 36. Bxf1 {[%emt 0:00:27]} Re1 {[%emt 0:01:34]} 37. Rf2 {[%emt 0:02:33]} Bb3 {[%emt 0:01:31]} 38. Bc5 {[%emt 0:00:44]} Nd7 {[%emt 0:01:22]} 39. Bd6 {[%emt 0:00:24]} Nf6 {[%emt 0:00:36]} 40. Bc7 {[%emt 0:00:00]} Ne4 {[%emt 0:00:00]} 41. Re2 {[%emt 0:08:48]} Rxf1 {[%emt 0:01:40]} 42. Rxe4 {[%emt 0:00:02]} f5 {[%emt 0:00:51]} 43. Re2 {[%emt 0:00:30]} Rd1 {[%emt 0:00:42]} 44. Re7 {[%emt 0:06:57]} Rd2+ {[%emt 0:01:31]} 45. Kg3 {[%emt 0:00:25]} Rxb2 {[%emt 0:00:59]} 46. d5 {[%emt 0:00:15]} Rd2 {[%emt 0:00:44]} 47. d6 {[%emt 0:00:06]} Bf8 {[%emt 0:00:59]} 48. Rd7 {[%emt 0:00:49]} Ba4 {[%emt 0:00:52]} 49. Rd8 {[%emt 0:00:04]} Kf7 {[%emt 0:00:48]} 50. Kf4 {[%emt 0:01:51]} Bh6+ {[%emt 0:00:24]} 51. Kg3 {[%emt 0:00:57]} Bc6 {[%emt 0:00:21]} 52. h4 {[%emt 0:00:22]} f4+ {[%emt 0:02:25]} 0-1

[Event "POL-chT 1st League 2020"]
[Site "Ustron"]
[Date "2020.09.08"]
[Round "4.6"]
[White "Lach, Aleksandra"]
[Black "Marcinczyk, Monika"]
[Result "1/2-1/2"]
[ECO "B38"]
[WhiteElo "2188"]
[BlackElo "1934"]
[Annotator "NA"]
[PlyCount "63"]
[EventDate "2020.09.05"]
[EventType "team-tourn"]
[EventCountry "POL"]
[SourceTitle "playchess.com"]
[Source "ChessBase"]
[SourceQuality "1"]
[TimeControl "40/5400+30:1800+30"]

1. e4 {[%emt 0:00:00]} c5 {[%emt 0:00:00]} 2. Nf3 {[%emt 0:00:03]} g6 {[%emt 0:00:00]} 3. d4 {[%emt 0:00:56]} cxd4 {[%emt 0:00:04]} 4. Nxd4 {[%emt 0:00:17]} Nc6 {[%emt 0:00:20]} 5. c4 {[%emt 0:00:54]} Bg7 {[%emt 0:00:09]} 6. Be3 {[%emt 0:00:17]} Nf6 {[%emt 0:00:16]} 7. Nc3 {[%emt 0:00:17]} d6 {[%emt 0:00:33]} 8. Be2 {[%emt 0:00:53]} O-O {[%emt 0:00:11]} 9. O-O {[%emt 0:01:29]} Bd7 {[%emt 0:00:09]} 10. h3 {[%emt 0:01:33]} Nxd4 {[%emt 0:01:05]} 11. Bxd4 {[%emt 0:02:05]} Bc6 {[%emt 0:00:09]} 12. Qc2 {[%emt 0:00:45] 12.Qc2 scores better than 12.Qd3. B38: Sicilian: Maroczy Bind with 5...Bg7 and 7...0-0.} a5 {[%emt 0:00:59]} 13. Rad1 {[%emt 0:03:09]} Nd7 {[%emt 0:03:48]} 14. Bxg7 {[%emt 0:03:01]} Kxg7 {[%emt 0:00:08]} 15. Bg4 {[%emt 0:00:43]} Ne5 {[%emt 0:04:00]} 16. c5 {[%emt 0:03:05]} Nxg4 {[%emt 0:14:05]} 17. hxg4 {[%emt 0:01:37]} Qc8 {[%emt 0:06:51]} 18. cxd6 {[%emt 0:07:57]} exd6 {[%emt 0:01:19]} 19. f3 {[%emt 0:06:56]} Rd8 {[%emt 0:05:39] [#]} 20. Rf2 $146 {[%emt 0:04:41]} ({Predecessor:} 20. Rd4 Qe6 21. Rfd1 Qe5 22. Qd2 Qc5 23. Qf4 b5 24. Kh2 b4 25. Ne2 Qb5 26. Ng3 {1-0 (35) Salomon,J (2509)-Svanda,O (2261) Teplice 2019}) 20... Qe6 {[%emt 0:04:50]} 21. Nd5 {[%emt 0:05:36]} Rac8 {[%emt 0:03:55]} 22. Qc3+ {[%emt 0:02:32]} Qe5 {[%emt 0:01:11]} 23. Qxa5 {[%emt 0:01:25]} Ra8 {[%emt 0:09:03]} 24. Qb4 {[%emt 0:19:06]} Ra4 {[%emt 0:07:30]} 25. Qb6 {[%emt 0:01:00]} Rda8 {[%emt 0:04:04]} 26. Nc3 {[%emt 0:08:35]} Rc4 {[%emt 0:08:04]} 27. Qc7 {[%emt 0:06:54]} Rd4 {[%emt 0:06:17]} 28. Rfd2 {[%emt 0:02:36]} Rxd2 $14 {[%emt 0:00:27]} 29. Rxd2 {[%emt 0:00:00]} Qc5+ {[%emt 0:00:40]} 30. Kh2 {[%emt 0:04:02]} Qg5 {[%emt 0:03:46]} 31. Qxd6 {[%emt 0:09:50]} Qh4+ {[%emt 0:00:13]} 32. Kg1 {[%emt 0:00:01]} 1/2-1/2

[Event "POL-chT 1st League 2020"]
[Site "Ustron"]
[Date "2020.09.08"]
[Round "4.9"]
[White "Koziol, Kamil"]
[Black "Dudzinski, Pawel"]
[Result "1-0"]
[ECO "B15"]
[WhiteElo "2296"]
[BlackElo "2199"]
[Annotator "ChessBase"]
[PlyCount "83"]
[EventDate "2020.09.05"]
[EventType "team-tourn"]
[EventCountry "POL"]
[SourceTitle "playchess.com"]
[Source "ChessBase"]
[SourceQuality "1"]
[TimeControl "40/5400+30:1800+30"]

1. e4 {[%emt 0:00:00]} c6 {[%emt 0:00:00]} 2. d4 {[%emt 0:00:00]} d5 {[%emt 0:00:00]} 3. Nc3 {[%emt 0:00:04]} g6 {[%emt 0:00:00]} 4. h3 {[%emt 0:00:20]} Bg7 {[%emt 0:01:20]} 5. Nf3 {[%emt 0:01:45]} Nf6 {[%emt 0:02:17]} 6. e5 {[%emt 0:00:21]} Ne4 {[%emt 0:00:37]} 7. Nxe4 {[%emt 0:00:28]} dxe4 {[%emt 0:00:10]} 8. Ng5 {[%emt 0:00:05]} c5 {[%emt 0:00:53]} 9. dxc5 {[%emt 0:00:31]} Qxd1+ {[%emt 0:08:09]} 10. Kxd1 {[%emt 0:00:10]} Bxe5 {[%emt 0:00:46]} 11. Bc4 {[%emt 0:00:54]} O-O {[%emt 0:06:21]} 12. c3 {[%emt 0:00:51]} a5 {[%emt 0:15:40]} 13. Be3 {[%emt 0:10:08]} Kg7 {[%emt 0:18:21]} 14. Nxe4 {[%emt 0:01:36]} f5 {[%emt 0:05:15]} 15. Ng5 {[%emt 0:10:51]} f4 {[%emt 0:11:50]} 16. Bd2 {[%emt 0:01:25]} h6 {[%emt 0:17:55]} 17. Nf3 {[%emt 0:03:56]} Bc7 {[%emt 0:00:49]} 18. Re1 {[%emt 0:02:06]} Kf6 {[%emt 0:02:42]} 19. g4 {[%emt 0:12:10]} fxg3 {[%emt 0:01:10]} 20. Bxh6 {[%emt 0:00:38]} Rd8+ {[%emt 0:01:24]} 21. Kc1 {[%emt 0:14:35]} gxf2 {[%emt 0:00:46]} 22. Bg5+ {[%emt 0:01:34]} Kf5 {[%emt 0:00:20]} 23. Rxe7 {[%emt 0:04:55]} Bf4+ {[%emt 0:00:33]} 24. Kc2 {[%emt 0:03:42]} Bxg5 {[%emt 0:00:29]} 25. Rf7+ {[%emt 0:00:23]} Bf6 {[%emt 0:00:23]} 26. Rf1 {[%emt 0:00:28]} Be6 {[%emt 0:02:23]} 27. Nh4+ {[%emt 0:01:53]} Ke4 {[%emt 0:00:38]} 28. Bd3+ {[%emt 0:01:11]} Rxd3 {[%emt 0:01:02]} 29. Rxf6 {[%emt 0:00:02]} Rxh3 {[%emt 0:01:29]} 30. Rxe6+ {[%emt 0:01:30]} Kd5 {[%emt 0:00:17]} 31. Nxg6 {[%emt 0:00:39]} Rxc3+ {[%emt 0:00:36]} 32. Kxc3 {[%emt 0:00:17]} Kxe6 {[%emt 0:00:08]} 33. Rxf2 {[%emt 0:00:21]} Na6 {[%emt 0:01:14]} 34. Kc4 {[%emt 0:03:50]} Rc8 {[%emt 0:00:12]} 35. Nf4+ {[%emt 0:00:29]} Kd7 {[%emt 0:00:45]} 36. Nd3 {[%emt 0:00:51]} b6 {[%emt 0:00:23]} 37. Rf7+ {[%emt 0:07:14]} Ke6 {[%emt 0:00:24]} 38. Rb7 {[%emt 0:00:18]} Nc7 {[%emt 0:00:47]} 39. Rxb6+ {[%emt 0:00:12]} Ke7 {[%emt 0:00:19]} 40. Nf4 {[%emt 0:00:00]} Rd8 {[%emt 0:00:00]} 41. Rb7 {[%emt 0:01:32]} Kd7 {[%emt 0:01:05]} 42. Rxc7+ {[%emt 0:00:08]} 1-0

[Event "POL-chT 1st League 2020"]
[Site "Ustron"]
[Date "2020.09.08"]
[Round "4.10"]
[White "Szyszylo, Rafal"]
[Black "Nowak, Mikolaj"]
[Result "1-0"]
[ECO "B12"]
[WhiteElo "2188"]
[BlackElo "2279"]
[Annotator "ChessBase"]
[PlyCount "97"]
[EventDate "2020.09.05"]
[EventType "team-tourn"]
[EventCountry "POL"]
[SourceTitle "playchess.com"]
[Source "ChessBase"]
[SourceQuality "1"]
[TimeControl "40/5400+30:1800+30"]

1. e4 {[%emt 0:00:00]} c6 {[%emt 0:00:00]} 2. d4 {[%emt 0:00:04]} d5 {[%emt 0:00:00]} 3. e5 {[%emt 0:00:17]} Bf5 {[%emt 0:00:00]} 4. Nf3 {[%emt 0:00:04]} e6 {[%emt 0:00:00]} 5. Be2 {[%emt 0:00:16]} Be7 {[%emt 0:00:00]} 6. O-O {[%emt 0:02:23]} h5 {[%emt 0:00:01]} 7. Nbd2 {[%emt 0:02:52]} Nh6 {[%emt 0:00:23]} 8. c4 {[%emt 0:11:05]} dxc4 {[%emt 0:00:07]} 9. Nxc4 {[%emt 0:00:50]} Nd7 {[%emt 0:00:12]} 10. Bd2 {[%emt 0:07:12]} Bg6 {[%emt 0:01:43]} 11. Ba5 {[%emt 0:03:54]} b6 {[%emt 0:01:59]} 12. Bc3 {[%emt 0:00:11]} Nf5 {[%emt 0:02:39]} 13. Rc1 {[%emt 0:10:35]} Rc8 {[%emt 0:04:23]} 14. a4 {[%emt 0:05:37]} h4 {[%emt 0:08:11]} 15. h3 {[%emt 0:01:27]} O-O {[%emt 0:04:10]} 16. Re1 {[%emt 0:06:04]} Qc7 {[%emt 0:07:00]} 17. Bd3 Rfd8 {[%emt 0:05:40]} 18. Be4 {[%emt 0:16:55]} Nf8 {[%emt 0:07:33]} 19. Qe2 {[%emt 0:03:56]} Qd7 {[%emt 0:06:37]} 20. Red1 {[%emt 0:04:35]} Nh6 {[%emt 0:04:48]} 21. Ncd2 {[%emt 0:01:39]} Bf5 {[%emt 0:04:27]} 22. Kh2 {[%emt 0:00:51]} Ng6 {[%emt 0:01:31]} 23. g3 {[%emt 0:01:53]} Bxe4 {[%emt 0:05:34]} 24. Nxe4 {[%emt 0:00:06]} Qd5 {[%emt 0:03:31]} 25. Ra1 {[%emt 0:10:34]} Rc7 {[%emt 0:09:31]} 26. g4 {[%emt 0:02:13]} Rcd7 {[%emt 0:01:59]} 27. Bd2 {[%emt 0:00:36]} Qb3 {[%emt 0:02:12]} 28. Bxh6 {[%emt 0:03:38]} gxh6 {[%emt 0:00:19]} 29. Qe3 {[%emt 0:01:31]} Qd5 {[%emt 0:08:25]} 30. Re1 {[%emt 0:00:35]} Kh7 {[%emt 0:01:48]} 31. Rac1 {[%emt 0:00:06]} c5 {[%emt 0:02:31]} 32. dxc5 {[%emt 0:00:27]} Nxe5 {[%emt 0:00:13]} 33. c6 {[%emt 0:00:52]} Rc7 {[%emt 0:03:15]} 34. Red1 {[%emt 0:01:45]} Nxf3+ {[%emt 0:03:11]} 35. Qxf3 {[%emt 0:00:01]} Qe5+ {[%emt 0:00:20]} 36. Kg2 {[%emt 0:00:04]} f5 {[%emt 0:00:31]} 37. Rxd8 {[%emt 0:00:36]} Bxd8 {[%emt 0:00:12]} 38. Nc3 {[%emt 0:00:58]} Rg7 {[%emt 0:02:11]} 39. Qd3 {[%emt 0:00:18]} Bc7 {[%emt 0:00:51]} 40. Kf1 {[%emt 0:00:00]} Kg8 {[%emt 0:00:00]} 41. Re1 {[%emt 0:03:21]} Qf6 {[%emt 0:02:16]} 42. gxf5 {[%emt 0:00:58]} exf5 {[%emt 0:00:55]} 43. Re8+ {[%emt 0:05:08]} Kh7 {[%emt 0:01:04]} 44. Nd5 {[%emt 0:00:56]} Qg5 {[%emt 0:02:21]} 45. Rf8 {[%emt 0:08:13]} Kg6 {[%emt 0:06:00]} 46. Ne3 {[%emt 0:04:29]} Rf7 {[%emt 0:01:12]} 47. Rg8+ {[%emt 0:00:32]} Rg7 {[%emt 0:00:13]} 48. Rxg7+ {[%emt 0:00:17]} Kxg7 {[%emt 0:00:01]} 49. Qd7+ {[%emt 0:00:37]} 1-0